fUST/lending_fUST_20250127
["ID","MTS","AMOUNT","RATE_DAILY","PERIOD"]
[350586871,1737976248339,-1101.83,0.00019452,2]
[350586873,1737976248350,-859.34,0.00019452,2]
[350586874,1737976248359,-3065.26,0.00019452,2]
[350586875,1737976248369,-2815.36,0.00019452,2]
[350586876,1737976248378,-695.08,0.00019452,2]
[350586877,1737976248388,-1318.94,0.00019452,2]
[350586878,1737976248397,-8022.93,0.00019452,2]
[350586879,1737976248407,-1021.74,0.00019452,2]
[350586881,1737976248417,-721.82,0.00019452,2]
[350586882,1737976248427,-776.85,0.00019452,2]
[350586884,1737976248436,-1240.34,0.00019452,2]
[350586886,1737976248446,-2087.29,0.00019452,2]
[350586888,1737976248456,-500.0,0.00019452,2]
[350586890,1737976248465,-2936.79660356,0.00019589,2]
[350586893,1737976248474,-1903.12314376,0.00019589,2]
[350586904,1737976248486,-1102.0,0.00019589,2]
[350586907,1737976248586,-859.53779226,0.00019589,2]
[350586908,1737976248595,-3065.26707678,0.00019589,2]
[350586910,1737976248605,-2815.40438743,0.00019589,2]
[350586912,1737976248615,-695.10453778,0.00019589,2]
[350586914,1737976248624,-1319.12893027,0.00019589,2]
[350586916,1737976248634,-8022.9531,0.00019589,2]
[350586918,1737976248643,-1021.89,0.00019589,2]
[350586920,1737976248652,-722.05126819,0.00019589,2]
[350586922,1737976248662,-777.06,0.00019589,2]
[350586924,1737976248671,-1240.39217981,0.00019589,2]
[350586926,1737976248681,-2087.30362453,0.00019589,2]
[350586928,1737976248690,-166.71877714,0.00019589,2]
[350586930,1737976248699,-151.0,0.000196,2]
[350586932,1737976248709,-151.0,0.000196,2]
[350586934,1737976248719,-151.0,0.000196,2]
[350586936,1737976248730,-267.0,0.00019631,2]
[350586938,1737976248739,-7732.87108715,0.00019888,7]
[350586940,1737976248748,-19999.08497651,0.000199,2]
[350588289,1737976758803,165.280825,0.00013973,2]
[350588290,1737976826826,1000.0,0.00023,120]
[350588302,1737977249148,-300.0,0.0001548,2]
[350588303,1737977249170,-474.18004663,0.00015481,2]
[350588315,1737977356198,-19843.43892846,0.00015481,2]
[350588316,1737977357140,-242.58629211,0.00015481,2]
[350588317,1737977357161,-265.316231,0.00015711,2]
[350588318,1737977357181,-5000.0,0.00015994,2]
[350588319,1737977357201,-1785.13987689,0.00015994,2]
[350588361,1737977432039,-3214.86012311,0.00015994,2]
[350588362,1737977432049,-769.34799469,0.00016238,2]
[350588363,1737977432058,-198.50208948,0.00016338,2]
[350588364,1737977432068,-197.31380923,0.00016437,2]
[350588365,1737977432077,-191.67687206,0.00016437,2]
[350588366,1737977432086,-500.0,0.00016437,2]
[350588367,1737977432095,-151.0,0.00016438,2]
[350588368,1737977432104,-500.0,0.00016438,2]
[350588369,1737977432114,-500.0,0.00016438,2]
[350588370,1737977432123,-500.0,0.00016438,2]
[350588371,1737977432132,-500.72735406,0.00016438,2]
[350588372,1737977432142,-500.0,0.00016438,2]
[350588373,1737977432152,-500.0,0.00016438,2]
[350588374,1737977432161,-510.51467094,0.00016438,2]
[350588375,1737977432171,-511.64698148,0.00016438,2]
[350588376,1737977432181,-491.63399887,0.00016438,2]
[350588377,1737977432197,-500.0,0.00016438,2]
[350588379,1737977432207,-500.0,0.00016438,2]
[350588380,1737977432217,-601.70176474,0.00016438,2]
[350588382,1737977432227,-500.0,0.00016438,2]
[350588384,1737977432237,-500.0,0.00016438,2]
[350588385,1737977432247,-510.40892264,0.00016438,2]
[350588387,1737977432257,-500.0,0.00016438,2]
[350588389,1737977432267,-500.0,0.00016438,2]
[350588391,1737977432278,-200.0,0.00016438,2]
[350588392,1737977432287,-500.0,0.00016438,2]
[350588394,1737977432297,-561.64264187,0.00016438,2]
[350588396,1737977432305,-500.0,0.00016438,2]
[350588397,1737977432315,-500.0,0.00016438,2]
[350588399,1737977432325,-393.0,0.00016438,2]
[350588401,1737977432334,-500.0,0.00016438,2]
[350588402,1737977432342,-500.0,0.00016438,2]
[350588404,1737977432351,-500.0,0.00016438,2]
[350588406,1737977432361,-151.0,0.00016438,2]
[350588407,1737977432370,-608.1524699,0.00016438,2]
[350588409,1737977432379,-500.0,0.00016438,2]
[350588411,1737977432387,-500.0,0.00016438,2]
[350588413,1737977432396,-561.3518422,0.00016438,2]
[350588415,1737977432406,-500.0,0.00016438,2]
[350588416,1737977432416,-500.0,0.00016438,2]
[350588418,1737977432426,-501.39295939,0.00016438,2]
[350588420,1737977432441,-500.0,0.00016438,2]
[350588421,1737977432450,-500.0,0.00016438,2]
[350588423,1737977432459,-500.0,0.00016438,2]
[350588425,1737977432468,-500.0,0.00016438,2]
[350588427,1737977432477,-500.0,0.00016438,2]
[350588428,1737977432486,-500.0,0.00016438,2]
[350588430,1737977432495,-501.27115331,0.00016438,2]
[350588431,1737977432504,-500.0,0.00016438,2]
[350588432,1737977432513,-500.0,0.00016438,2]
[350588433,1737977432522,-501.89309696,0.00016438,2]
[350588434,1737977432533,-510.88118056,0.00016438,2]
[350588435,1737977432541,-505.0212628,0.00016438,2]
[350588436,1737977432550,-500.0,0.00016438,2]
[350588437,1737977432559,-501.46429186,0.00016438,2]
[350588438,1737977432569,-500.0,0.00016438,2]
[350588439,1737977432577,-503.65403261,0.00016438,2]
[350588440,1737977432586,-501.60224282,0.00016438,2]
[350588441,1737977432595,-500.0,0.00016438,2]
[350588442,1737977432605,-500.0,0.00016438,2]
[350588443,1737977432614,-569.99869297,0.00016438,2]
[350588444,1737977432623,-500.0,0.00016438,2]
[350588445,1737977432632,-501.38808462,0.00016438,2]
[350588446,1737977432641,-501.14641749,0.00016438,2]
[350588447,1737977432650,-500.0,0.00016438,2]
[350588448,1737977432658,-501.38713407,0.00016438,2]
[350588449,1737977432667,-500.0,0.00016438,2]
[350588450,1737977432676,-500.0,0.00016438,2]
[350588451,1737977432688,-501.56499852,0.00016438,2]
[350588452,1737977432697,-500.0,0.00016438,2]
[350588453,1737977432706,-496.71136044,0.00016438,2]
[350588454,1737977432715,-500.0,0.00016438,2]
[350588455,1737977432723,-500.0,0.00016438,2]
[350588456,1737977432732,-500.0,0.00016438,2]
[350588457,1737977432741,-500.0,0.00016438,2]
[350588458,1737977432750,-500.0,0.00016438,2]
[350588459,1737977432759,-501.64231909,0.00016438,2]
[350588460,1737977432876,-500.0,0.00016438,2]
[350588461,1737977432891,-500.0,0.00016438,2]
[350588462,1737977432901,-505.49128045,0.00016438,2]
[350588463,1737977432910,-272.8174024,0.00016438,2]
[350588464,1737977432919,-500.0,0.00016438,2]
[350588465,1737977432928,-502.25458843,0.00016438,2]
[350588466,1737977432941,-507.13666041,0.00016438,2]
[350588467,1737977432950,-507.16011455,0.00016438,2]
[350588468,1737977432959,-500.0,0.00016438,2]
[350588469,1737977432968,-501.89445966,0.00016438,2]
[350588470,1737977432977,-552.10806111,0.00016438,2]
[350588471,1737977432986,-503.0337729,0.00016438,2]
[350588472,1737977432995,-502.26791329,0.00016438,2]
[350588473,1737977433005,-265.36771231,0.00016438,2]
[350588474,1737977433018,-500.0,0.00016438,2]
[350588475,1737977433027,-504.84964008,0.00016438,2]
[350588476,1737977433040,-500.0,0.00016438,2]
[350588477,1737977433051,-501.98460534,0.00016438,2]
[350588478,1737977433061,-500.0,0.00016438,2]
[350588479,1737977433070,-500.0,0.00016438,2]
[350588480,1737977433080,-485.91671021,0.00016438,2]
[350588481,1737977433090,-518.08307917,0.00016438,2]
[350588482,1737977433099,-500.0,0.00016438,2]
[350588483,1737977433109,-500.0,0.00016438,2]
[350588484,1737977433118,-503.05859492,0.00016438,2]
[350588485,1737977433128,-500.0,0.00016438,2]
[350588486,1737977433137,-245.86131252,0.00016438,2]
[350588487,1737977433146,-500.0,0.00016438,2]
[350588488,1737977433155,-500.0,0.00016438,2]
[350588489,1737977433165,-502.51942727,0.00016438,2]
[350588490,1737977433175,-510.11542777,0.00016438,2]
[350588491,1737977433188,-346.87213484,0.00016438,2]
[350588492,1737977433197,-500.0,0.00016438,2]
[350588493,1737977433207,-563.26292151,0.00016438,2]
[350588494,1737977433216,-500.0,0.00016438,2]
[350588495,1737977433225,-469.95098389,0.00016438,2]
[350588496,1737977433235,-500.0,0.00016438,2]
[350588497,1737977433245,-500.0,0.00016438,2]
[350588498,1737977433255,-502.60710209,0.00016438,2]
[350588499,1737977433264,-501.42874147,0.00016438,2]
[350588500,1737977433275,-504.3406233,0.00016438,2]
[350588501,1737977433287,-500.0,0.00016438,2]
[350588502,1737977433297,-503.57763155,0.00016438,2]
[350588503,1737977433308,-500.0,0.00016438,2]
[350588504,1737977433319,-500.0,0.00016438,2]
[350588505,1737977433329,-500.0,0.00016438,2]
[350588506,1737977433339,-500.0,0.00016438,2]
[350588507,1737977433349,-500.0,0.00016438,2]
[350588508,1737977433359,-500.0,0.00016438,2]
[350588509,1737977433369,-500.0,0.00016438,2]
[350588510,1737977433379,-503.44955452,0.00016438,2]
[350588511,1737977433389,-503.5817909,0.00016438,2]
[350588512,1737977433399,-500.0,0.00016438,2]
[350588513,1737977433408,-500.0,0.00016438,2]
[350588514,1737977433418,-503.28689703,0.00016438,2]
[350588515,1737977433428,-503.61308378,0.00016438,2]
[350588516,1737977433443,-500.0,0.00016438,2]
[350588517,1737977433453,-500.0,0.00016438,2]
[350588518,1737977433462,-502.7016729,0.00016438,2]
[350588519,1737977433472,-515.02053733,0.00016438,2]
[350588520,1737977433482,-502.21258956,0.00016438,2]
[350588521,1737977433491,-500.0,0.00016438,2]
[350588522,1737977433501,-500.0,0.00016438,2]
[350588523,1737977433510,-518.78,0.00016438,2]
[350588524,1737977433519,-500.0,0.00016438,2]
[350588525,1737977433529,-500.0,0.00016438,2]
[350588526,1737977433541,-500.0,0.00016438,2]
[350588527,1737977433551,-504.92468283,0.00016438,2]
[350588528,1737977433560,-500.0,0.00016438,2]
[350588529,1737977433569,-500.0,0.00016438,2]
[350588530,1737977433580,-576.28454564,0.00016438,2]
[350588531,1737977433589,-597.88,0.00016438,2]
[350588532,1737977433599,-500.0,0.00016438,2]
[350588533,1737977433608,-504.13369875,0.00016438,2]
[350588534,1737977433617,-502.5452839,0.00016438,2]
[350588535,1737977433627,-502.21791597,0.00016438,2]
[350588536,1737977433636,-500.0,0.00016438,2]
[350588537,1737977433645,-500.70714449,0.00016438,2]
[350588538,1737977433654,-500.0,0.00016438,2]
[350588539,1737977433663,-502.52711191,0.00016438,2]
[350588540,1737977433672,-500.0,0.00016438,2]
[350588541,1737977433681,-500.0,0.00016438,2]
[350588542,1737977433693,-500.0,0.00016438,2]
[350588543,1737977433703,-628.16,0.00016438,2]
[350588544,1737977433712,-500.0,0.00016438,2]
[350588545,1737977433722,-500.0,0.00016438,2]
[350588546,1737977433731,-500.0,0.00016438,2]
[350588547,1737977433741,-500.0,0.00016438,2]
[350588548,1737977433750,-500.0,0.00016438,2]
[350588549,1737977433759,-500.0,0.00016438,2]
[350588550,1737977433768,-500.0,0.00016438,2]
[350588551,1737977433777,-500.0,0.00016438,2]
[350588552,1737977433787,-500.0,0.00016438,2]
[350588553,1737977433796,-500.0,0.00016438,2]
[350588554,1737977433805,-308.53507303,0.00016438,2]
[350588555,1737977433816,-500.0,0.00016438,2]
[350588556,1737977433825,-500.0,0.00016438,2]
[350588557,1737977433834,-500.0,0.00016438,2]
[350588558,1737977433843,-500.0,0.00016438,2]
[350588559,1737977433852,-500.0,0.00016438,2]
[350588560,1737977433861,-500.0,0.00016438,2]
[350588561,1737977433870,-500.0,0.00016438,2]
[350588562,1737977433879,-500.0,0.00016438,2]
[350588563,1737977433889,-500.0,0.00016438,2]
[350588564,1737977433898,-500.0,0.00016438,2]
[350588565,1737977433907,-500.0,0.00016438,2]
[350588566,1737977433917,-500.0,0.00016438,2]
[350588567,1737977433926,-211.79719215,0.00016438,2]
[350588568,1737977433939,-512.42238868,0.00016438,2]
[350588569,1737977433949,-500.0,0.00016438,2]
[350588570,1737977433958,-500.0,0.00016438,2]
[350588571,1737977433967,-500.0,0.00016438,2]
[350588572,1737977433977,-501.12837849,0.00016438,2]
[350588573,1737977433986,-500.0,0.00016438,2]
[350588574,1737977433996,-500.0,0.00016438,2]
[350588575,1737977434005,-500.0,0.00016438,2]
[350588576,1737977434016,-500.0,0.00016438,2]
[350588577,1737977434028,-500.0,0.00016438,2]
[350588578,1737977434045,-500.0,0.00016438,2]
[350588579,1737977434055,-504.15073909,0.00016438,2]
[350588580,1737977434065,-500.0,0.00016438,2]
[350588581,1737977434074,-500.0,0.00016438,2]
[350588582,1737977434084,-500.0,0.00016438,2]
[350588583,1737977434093,-500.0,0.00016438,2]
[350588584,1737977434104,-500.0,0.00016438,2]
[350588585,1737977434113,-500.0,0.00016438,2]
[350588586,1737977434123,-500.0,0.00016438,2]
[350588587,1737977434134,-500.0,0.00016438,2]
[350588588,1737977434144,-500.0,0.00016438,2]
[350588589,1737977434154,-617.32,0.00016438,2]
[350588590,1737977434165,-500.0,0.00016438,2]
[350588591,1737977434175,-500.0,0.00016438,2]
[350588592,1737977434189,-500.0,0.00016438,2]
[350588593,1737977434202,-500.0,0.00016438,2]
[350588594,1737977434215,-500.0,0.00016438,2]
[350588595,1737977434228,-500.0,0.00016438,2]
[350588596,1737977434241,-500.0,0.00016438,2]
[350588597,1737977434254,-500.0,0.00016438,2]
[350588598,1737977434266,-501.43054228,0.00016438,2]
[350588599,1737977434278,-500.8589783,0.00016438,2]
[350588600,1737977434288,-500.0,0.00016438,2]
[350588601,1737977434299,-500.0,0.00016438,2]
[350588602,1737977434309,-500.0,0.00016438,2]
[350588603,1737977434321,-500.0,0.00016438,2]
[350588604,1737977434332,-500.0,0.00016438,2]
[350588605,1737977434343,-500.0,0.00016438,2]
[350588606,1737977434354,-500.0,0.00016438,2]
[350588607,1737977434364,-500.0,0.00016438,2]
[350588608,1737977434376,-500.0,0.00016438,2]
[350588609,1737977434387,-500.0,0.00016438,2]
[350588610,1737977434397,-501.93298872,0.00016438,2]
[350588611,1737977434408,-500.0,0.00016438,2]
[350588612,1737977434419,-500.0,0.00016438,2]
[350588613,1737977434429,-246.04,0.00016438,2]
[350588614,1737977434443,-500.0,0.00016438,2]
[350588615,1737977434454,-500.0,0.00016438,2]
[350588616,1737977434465,-500.0,0.00016438,2]
[350588617,1737977434477,-500.0,0.00016438,2]
[350588618,1737977434489,-500.0,0.00016438,2]
[350588619,1737977434500,-507.16320565,0.00016438,2]
[350588620,1737977434511,-1084.87,0.00016438,2]
[350588621,1737977434521,-500.0,0.00016438,2]
[350588622,1737977434536,-504.50552859,0.00016438,2]
[350588623,1737977434546,-500.0,0.00016438,2]
[350588624,1737977434557,-500.0,0.00016438,2]
[350588625,1737977434567,-500.0,0.00016438,2]
[350588626,1737977434578,-500.0,0.00016438,2]
[350588627,1737977434589,-501.09404817,0.00016438,2]
[350588628,1737977434600,-500.0,0.00016438,2]
[350588629,1737977434611,-500.0,0.00016438,2]
[350588630,1737977434622,-500.0,0.00016438,2]
[350588631,1737977434633,-500.0,0.00016438,2]
[350588632,1737977434645,-500.0,0.00016438,2]
[350588633,1737977434655,-500.0,0.00016438,2]
[350588634,1737977434665,-500.0,0.00016438,2]
[350588635,1737977434675,-500.0,0.00016438,2]
[350588636,1737977434687,-500.0,0.00016438,2]
[350588637,1737977434698,-500.0,0.00016438,2]
[350588638,1737977434708,-539.93,0.00016438,2]
[350588639,1737977434719,-500.0,0.00016438,2]
[350588640,1737977434729,-502.02405485,0.00016438,2]
[350588641,1737977434740,-500.0,0.00016438,2]
[350588642,1737977434751,-500.0,0.00016438,2]
[350588643,1737977434761,-500.0,0.00016438,2]
[350588644,1737977434772,-500.0,0.00016438,2]
[350588645,1737977434783,-500.0,0.00016438,2]
[350588646,1737977434793,-500.0,0.00016438,2]
[350588647,1737977434805,-515.11468898,0.00016438,2]
[350588648,1737977434815,-500.0,0.00016438,2]
[350588649,1737977434827,-500.0,0.00016438,2]
[350588650,1737977434838,-500.0,0.00016438,2]
[350588651,1737977434849,-500.0,0.00016438,2]
[350588652,1737977434861,-150.78022881,0.00016438,2]
[350588653,1737977434872,-500.0,0.00016438,2]
[350588654,1737977434883,-503.73406257,0.00016438,2]
[350588655,1737977434892,-500.0,0.00016438,2]
[350588656,1737977434902,-250.70243876,0.00016438,2]
[350588657,1737977434912,-500.0,0.00016438,2]
[350588658,1737977434922,-500.0,0.00016438,2]
[350588659,1737977434931,-500.0,0.00016438,2]
[350588660,1737977434942,-500.0,0.00016438,2]
[350588661,1737977434952,-500.0,0.00016438,2]
[350588662,1737977434963,-500.0,0.00016438,2]
[350588663,1737977434974,-500.0,0.00016438,2]
[350588664,1737977434985,-659.59,0.00016438,2]
[350588665,1737977434997,-500.0,0.00016438,2]
[350588666,1737977435008,-500.0,0.00016438,2]
[350588667,1737977435018,-548.3,0.00016438,2]
[350588668,1737977435028,-500.0,0.00016438,2]
[350588669,1737977435038,-500.0,0.00016438,2]
[350588670,1737977435048,-500.0,0.00016438,2]
[350588671,1737977435059,-521.13,0.00016438,2]
[350588672,1737977435069,-500.0,0.00016438,2]
[350588673,1737977435080,-500.0,0.00016438,2]
[350588674,1737977435091,-500.0,0.00016438,2]
[350588675,1737977435102,-500.0,0.00016438,2]
[350588676,1737977435112,-500.0,0.00016438,2]
[350588677,1737977435122,-500.0,0.00016438,2]
[350588678,1737977435133,-500.49171387,0.00016438,2]
[350588679,1737977435143,-631.04,0.00016438,2]
[350588680,1737977435153,-500.0,0.00016438,2]
[350588681,1737977435163,-500.0,0.00016438,2]
[350588682,1737977435174,-500.79003799,0.00016438,2]
[350588683,1737977435185,-500.0,0.00016438,2]
[350588684,1737977435196,-500.0,0.00016438,2]
[350588685,1737977435206,-500.0,0.00016438,2]
[350588686,1737977435217,-617.43120762,0.00016438,2]
[350588687,1737977435227,-500.0,0.00016438,2]
[350588688,1737977435237,-500.0,0.00016438,2]
[350588689,1737977435248,-500.0,0.00016438,2]
[350588690,1737977435258,-500.0,0.00016438,2]
[350588691,1737977435269,-500.0,0.00016438,2]
[350588692,1737977435279,-500.0,0.00016438,2]
[350588693,1737977435290,-605.77,0.00016438,2]
[350588694,1737977435300,-500.0,0.00016438,2]
[350588695,1737977435311,-502.65187024,0.00016438,2]
[350588696,1737977435322,-500.0,0.00016438,2]
[350588697,1737977435333,-500.0,0.00016438,2]
[350588698,1737977435344,-500.0,0.00016438,2]
[350588699,1737977435354,-308.04372222,0.00016438,2]
[350588700,1737977435364,-500.0,0.00016438,2]
[350588701,1737977435375,-500.0,0.00016438,2]
[350588702,1737977435386,-500.0,0.00016573,2]
[350588703,1737977435396,-288.03346797,0.00016573,2]
[350588704,1737977435407,-500.0,0.00016573,2]
[350588705,1737977435418,-500.0,0.00016574,2]
[350588706,1737977435429,-500.0,0.00016574,2]
[350588707,1737977435441,-151.0,0.00016575,2]
[350588708,1737977435452,-151.0,0.00016575,2]
[350588709,1737977435463,-472.4008597,0.00016575,2]
[350588710,1737977435474,-500.0,0.00016575,2]
[350588711,1737977435484,-449.76,0.00016575,2]
[350588712,1737977435494,-500.0,0.00016575,2]
[350588713,1737977435505,-314.5991403,0.00016575,2]
[350588714,1737977435515,-500.0,0.00016575,2]
[350588715,1737977435526,-503.5598114,0.00016575,2]
[350588716,1737977435538,-446.81,0.00016575,2]
[350588717,1737977435548,-500.0,0.00016575,2]
[350588718,1737977435558,-500.0,0.00016575,2]
[350588719,1737977435569,-614.07,0.00016575,2]
[350588720,1737977435581,-500.0,0.00016575,2]
[350588721,1737977435592,-500.0,0.00016575,2]
[350588722,1737977435602,-546.63,0.00016575,2]
[350588723,1737977435716,-248.8,0.00016575,2]
[350588724,1737977435756,-500.0,0.00016575,2]
[350588725,1737977435766,-500.0,0.00016575,2]
[350588726,1737977435776,-500.0,0.00016575,2]
[350588727,1737977435786,-500.0,0.00016575,2]
[350588728,1737977435795,-500.0,0.00016575,2]
[350588729,1737977435804,-500.0,0.00016575,2]
[350588730,1737977435814,-529.05,0.00016575,2]
[350588731,1737977435823,-532.12,0.00016575,2]
[350588732,1737977435832,-500.0,0.00016575,2]
[350588733,1737977435842,-500.0,0.00016575,2]
[350588734,1737977435851,-500.0,0.00016575,2]
[350588735,1737977435861,-157.85,0.00016575,2]
[350588736,1737977435870,-503.04693168,0.00016575,2]
[350588737,1737977435881,-500.0,0.00016575,2]
[350588738,1737977435890,-500.0,0.00016575,2]
[350588739,1737977435899,-245.95,0.00016575,2]
[350588740,1737977435908,-500.0,0.00016575,2]
[350588741,1737977435917,-524.18,0.00016575,2]
[350588742,1737977435926,-1084.87,0.00016575,2]
[350588743,1737977435937,-245.57,0.00016575,2]
[350588744,1737977435947,-500.0,0.00016575,2]
[350588745,1737977435956,-375.97,0.00016575,2]
[350588746,1737977435966,-500.0,0.00016575,2]
[350588747,1737977435975,-500.0,0.00016575,2]
[350588748,1737977435984,-500.0,0.00016575,2]
[350588749,1737977435993,-500.0,0.00016575,2]
[350588750,1737977436003,-500.0,0.00016575,2]
[350588751,1737977436011,-500.0,0.00016575,2]
[350588752,1737977436020,-500.0,0.00016575,2]
[350588753,1737977436029,-500.0,0.00016575,2]
[350588754,1737977436038,-157.08,0.00016575,2]
[350588755,1737977436047,-659.59,0.00016575,2]
[350588756,1737977436057,-500.0,0.00016575,2]
[350588757,1737977436066,-548.3,0.00016575,2]
[350588758,1737977436076,-500.0,0.00016575,2]
[350588759,1737977436085,-500.0,0.00016575,2]
[350588760,1737977436095,-649.4,0.00016575,2]
[350588761,1737977436104,-588.78,0.00016575,2]
[350588762,1737977436113,-500.0,0.00016575,2]
[350588763,1737977436122,-500.0,0.00016575,2]
[350588764,1737977436131,-500.0,0.00016575,2]
[350588765,1737977436140,-387.39378835,0.00016711,2]
[350588766,1737977436149,-273.95,0.00016712,2]
[350588767,1737977436158,-239.04,0.00016712,2]
[350588768,1737977436168,-500.0,0.00016712,2]
[350588769,1737977436178,-500.0,0.00016712,2]
[350588770,1737977436187,-500.0,0.00016712,2]
[350588771,1737977436196,-500.0,0.00016712,2]
[350588772,1737977436205,-1084.87,0.00016712,2]
[350588773,1737977436215,-500.0,0.00016712,2]
[350588774,1737977436224,-500.0,0.00016712,2]
[350588775,1737977436233,-549.0,0.00016712,2]
[350588776,1737977436242,-500.0,0.00016712,2]
[350588777,1737977436251,-500.0,0.00016712,2]
[350588778,1737977436260,-500.0,0.00016712,2]
[350588779,1737977436270,-500.0,0.00016712,2]
[350588780,1737977436279,-500.0,0.00016712,2]
[350588781,1737977436288,-659.59,0.00016712,2]
[350588782,1737977436297,-500.0,0.00016712,2]
[350588783,1737977436306,-548.3,0.00016712,2]
[350588784,1737977436315,-500.0,0.00016712,2]
[350588785,1737977436324,-351.3,0.00016712,2]
[350588786,1737977436334,-280.01,0.00016712,2]
[350588787,1737977436343,-514.44,0.00016712,2]
[350588788,1737977436352,-263.92,0.00016712,2]
[350588789,1737977436362,-500.0,0.00016849,2]
[350588790,1737977436371,-500.0,0.00016849,2]
[350588791,1737977436380,-500.0,0.00016849,2]
[350588792,1737977436389,-500.0,0.00016849,2]
[350588793,1737977436399,-1084.87,0.00016849,2]
[350588794,1737977436408,-500.0,0.00016849,2]
[350588795,1737977436418,-500.0,0.00016849,2]
[350588796,1737977436427,-500.0,0.00016849,2]
[350588797,1737977436437,-500.0,0.00016849,2]
[350588798,1737977436447,-500.0,0.00016849,2]
[350588799,1737977436456,-500.0,0.00016849,2]
[350588800,1737977436466,-500.0,0.00016849,2]
[350588801,1737977436475,-659.59,0.00016849,2]
[350588802,1737977436484,-500.0,0.00016849,2]
[350588803,1737977436494,-548.3,0.00016849,2]
[350588804,1737977436503,-500.0,0.00016849,2]
[350588805,1737977436513,-158.266,0.00016886,2]
[350588806,1737977436523,-561.85,0.00016986,2]
[350588807,1737977436537,-277.21,0.00016986,2]
[350588808,1737977436546,-500.0,0.00016986,2]
[350588809,1737977436555,-500.0,0.00016986,2]
[350588810,1737977436565,-1084.87,0.00016986,2]
[350588811,1737977436575,-500.0,0.00016986,2]
[350588812,1737977436584,-500.0,0.00016986,2]
[350588813,1737977436593,-500.0,0.00016986,2]
[350588814,1737977436603,-500.0,0.00016986,2]
[350588815,1737977436613,-500.0,0.00016986,2]
[350588816,1737977436622,-500.0,0.00016986,2]
[350588817,1737977436632,-500.0,0.00016986,2]
[350588818,1737977436642,-659.59,0.00016986,2]
[350588819,1737977436651,-500.0,0.00016986,2]
[350588820,1737977436660,-548.3,0.00016986,2]
[350588821,1737977436670,-500.0,0.00016986,2]
[350588822,1737977436679,-4323.33800567,0.00017023,2]
[350588823,1737977436690,-500.0,0.00017123,2]
[350588824,1737977436700,-500.0,0.00017123,2]
[350588825,1737977436709,-1084.87,0.00017123,2]
[350588826,1737977436719,-500.0,0.00017123,2]
[350588827,1737977436728,-500.0,0.00017123,2]
[350588828,1737977436737,-500.0,0.00017123,2]
[350588829,1737977436747,-500.0,0.00017123,2]
[350588830,1737977436756,-567.23,0.00017123,2]
[350588831,1737977436765,-500.0,0.00017123,2]
[350588832,1737977436775,-500.0,0.00017123,2]
[350588833,1737977436783,-659.59,0.00017123,2]
[350588834,1737977436792,-500.0,0.00017123,2]
[350588835,1737977436801,-548.3,0.00017123,2]
[350588836,1737977436811,-500.0,0.00017123,2]
[350588837,1737977436820,-769.34799466,0.00017128,2]
[350588838,1737977436829,-500.0,0.0001726,2]
[350588839,1737977436838,-500.0,0.0001726,2]